fUSD/lending_fUSD_20240616
["ID","MTS","AMOUNT","RATE_DAILY","PERIOD"]
[329649362,1718541048477,-76.73079801,0.00022191,3]
[329649368,1718541049710,-74.87800428,0.00016791,2]
[329649369,1718541049726,-1229.12199572,0.00016791,2]
[329649370,1718541049737,-1174.96165495,0.00021916,2]
[329649371,1718541049764,-250.0,0.00021918,2]
[329649372,1718541049776,-1515.36888768,0.00022191,3]
[329649373,1718541049789,-408.00031431,0.00022191,3]
[329649374,1718541049802,-813.26,0.00022191,3]
[329649375,1718541049820,-500.0,0.00022191,3]
[329649376,1718541049840,-500.0,0.00022191,3]
[329649377,1718541049861,-27.35964979,0.00022191,3]
[329649378,1718541049975,-167.72,0.00021653,2]
[329649379,1718541049987,-1000.0,0.00021916,2]
[329649380,1718541050000,-314.06829422,0.00022191,3]
[329649381,1718541050012,-853.1,0.00022191,3]
[329649382,1718541050028,-1275.85,0.00022191,3]
[329649383,1718541050043,-944.04,0.00022191,3]
[329649384,1718541050053,-759.95,0.00022191,3]
[329649385,1718541050068,-500.0,0.00022191,3]
[329649386,1718541050079,-1253.06,0.00022191,3]
[329649387,1718541050090,-3040.89,0.00022191,3]
[329649388,1718541050106,-500.0,0.00022191,3]
[329649389,1718541050124,-500.0,0.00022191,3]
[329649390,1718541050135,-534.48,0.00022191,3]
[329649391,1718541050162,-2379.38,0.00022191,3]
[329649392,1718541050180,-594.17,0.00022191,3]
[329649393,1718541050190,-2395.2,0.00022191,3]
[329649394,1718541050207,-1197.62,0.00022191,3]
[329649396,1718541050224,-500.0,0.00022191,3]
[329649398,1718541050236,-1062.1,0.00022191,3]
[329649400,1718541050247,-500.0,0.00022191,3]
[329649402,1718541050270,-500.0,0.00022191,3]
[329649405,1718541050295,-500.0,0.00022191,3]
[329649407,1718541050308,-251.13368208,0.00022191,3]
[329649408,1718541050319,-2099.55,0.00022191,3]
[329649409,1718541050336,-500.0,0.00022191,3]
[329649410,1718541050348,-620.4,0.00022191,3]
[329649411,1718541050385,-861.57,0.00022191,3]
[329649412,1718541050399,-500.0,0.00022191,3]
[329649413,1718541050411,-783.39,0.00022191,3]
[329649414,1718541050448,-1665.96,0.00022191,3]
[329649415,1718541050471,-500.0,0.00022191,3]
[329649416,1718541050510,-1511.29,0.00022191,3]
[329649417,1718541050529,-500.0,0.00022191,3]
[329649418,1718541050556,-4408.8,0.00022191,3]
[329649419,1718541050589,-549.16,0.00022191,3]
[329649420,1718541050600,-1015.52,0.00022191,3]
[329649421,1718541050614,-711.61,0.00022191,3]
[329649422,1718541050628,-500.0,0.00022191,3]
[329649423,1718541050648,-760.88,0.00022191,3]
[329649424,1718541050660,-500.0,0.00022191,3]
[329649425,1718541050682,-2985.82,0.00022191,3]
[329649426,1718541050714,-722.36,0.00022191,3]
[329649427,1718541050731,-620.66,0.00022191,3]
[329649428,1718541050748,-1310.33,0.00022191,3]
[329649429,1718541050773,-1128.27,0.00022191,3]
[329649430,1718541050808,-676.84,0.00022191,3]
[329649431,1718541050820,-1725.15,0.00022191,3]
[329649432,1718541050831,-636.9,0.00022191,3]
[329649433,1718541050843,-1331.36,0.00022191,3]
[329649434,1718541050854,-1553.5,0.00022191,3]
[329649435,1718541050867,-1295.17,0.00022191,3]
[329649436,1718541050884,-500.0,0.00022191,3]
[329649437,1718541050896,-6609.5,0.00022191,3]
[329649438,1718541050908,-992.06,0.00022191,3]
[329649439,1718541050920,-500.0,0.00022191,3]
[329649440,1718541050932,-580.06,0.00022191,3]
[329649441,1718541050945,-500.0,0.00022191,3]
[329649442,1718541050973,-4404.42,0.00022191,3]
[329649443,1718541050983,-3946.65,0.00022191,3]
[329649444,1718541051039,-500.0,0.00022191,3]
[329649445,1718541051067,-500.0,0.00022191,3]
[329649446,1718541051114,-466.39591128,0.00022191,3]
[329649447,1718541051126,-592.93,0.00022191,3]
[329649448,1718541051142,-1125.0,0.00022191,3]
[329649449,1718541051157,-500.0,0.00022191,3]
[329649450,1718541051188,-825.9,0.00022191,3]
[329649451,1718541051229,-2364.45,0.00022191,3]
[329649452,1718541051241,-500.0,0.00022191,3]
[329649453,1718541051254,-21287.6043,0.00022365,2]
[329649454,1718541051265,-447.56672219,0.00022465,2]
[329649455,1718541051284,-23019.62531101,0.00022465,2]
[329649456,1718541051849,-5360.44557349,0.00022465,2]
[329649457,1718541051862,-750.72000001,0.00022465,2]
[329649458,1718541051899,-5893.76481119,0.00022465,2]
[329649459,1718541051910,-1043.57163077,0.00022465,2]
[329649460,1718541051920,-500.0,0.00022465,3]
[329649461,1718541051934,-500.0,0.00022465,3]
[329649462,1718541051946,-455.6,0.00022465,3]
[329649463,1718541051977,-500.0,0.00022465,3]
[329649464,1718541051987,-538.57,0.00022465,3]
[329649465,1718541052024,-480.57311657,0.00022465,3]
[329649466,1718541052035,-500.0,0.00022465,3]
[329649467,1718541052072,-500.0,0.00022465,3]
[329649468,1718541052090,-500.0,0.00022465,3]
[329649469,1718541052119,-500.0,0.00022465,3]
[329649470,1718541052142,-500.0,0.00022465,3]
[329649471,1718541052163,-500.0,0.00022465,3]
[329649472,1718541052182,-500.0,0.00022465,3]
[329649473,1718541052207,-500.0,0.00022465,3]
[329649474,1718541052220,-716.15,0.00022465,3]
[329649475,1718541052234,-500.0,0.00022465,3]
[329649476,1718541052265,-500.0,0.00022465,3]
[329649477,1718541052284,-500.0,0.00022465,3]
[329649478,1718541052309,-500.0,0.00022465,3]
[329649479,1718541052320,-500.0,0.00022465,3]
[329649480,1718541052369,-500.0,0.00022465,3]
[329649481,1718541052385,-500.0,0.00022465,3]
[329649482,1718541052421,-500.0,0.00022465,3]
[329649483,1718541052461,-500.0,0.00022465,3]
[329649484,1718541052472,-500.0,0.00022465,3]
[329649485,1718541052490,-365.92539438,0.00022465,3]
[329649486,1718541052508,-500.0,0.00022465,3]
[329649487,1718541052530,-500.0,0.00022465,3]
[329649488,1718541052548,-500.0,0.00022465,3]
[329649489,1718541052563,-588.14,0.00022465,3]
[329649490,1718541052574,-500.0,0.00022465,3]
[329649491,1718541052590,-500.0,0.00022465,3]
[329649492,1718541052616,-534.55,0.00022465,3]
[329649493,1718541052627,-500.0,0.00022465,3]
[329649494,1718541052660,-500.0,0.00022465,3]
[329649495,1718541052672,-500.0,0.00022465,3]
[329649496,1718541052684,-500.0,0.00022465,3]
[329649497,1718541052700,-500.0,0.00022465,3]
[329649498,1718541052724,-500.0,0.00022465,3]
[329649499,1718541052772,-500.0,0.00022465,3]
[329649500,1718541052790,-500.0,0.00022465,3]
[329649501,1718541052807,-500.0,0.00022465,3]
[329649502,1718541052821,-500.0,0.00022465,3]
[329649503,1718541052841,-500.0,0.00022465,3]
[329649504,1718541052853,-526.79,0.00022465,3]
[329649505,1718541052863,-500.0,0.00022465,3]
[329649506,1718541052916,-188.0,0.00022465,3]
[329649507,1718541052930,-500.0,0.00022465,3]
[329649508,1718541052953,-797.3,0.00022465,3]
[329649509,1718541052967,-508.22,0.00022465,3]
[329649510,1718541052979,-392.40105454,0.00022465,3]
[329649511,1718541052991,-606.83,0.00022465,3]
[329649512,1718541053023,-500.0,0.00022465,3]
[329649513,1718541053048,-500.0,0.00022465,3]
[329649514,1718541053067,-553.46,0.00022465,3]
[329649515,1718541053081,-500.0,0.00022465,3]
[329649516,1718541053100,-500.0,0.00022465,3]
[329649517,1718541053110,-500.0,0.00022465,3]
[329649518,1718541053148,-500.0,0.00022465,3]
[329649519,1718541053167,-2348.54,0.00022465,3]
[329649520,1718541053194,-500.0,0.00022465,3]
[329649521,1718541053213,-500.0,0.00022465,3]
[329649522,1718541053223,-500.0,0.00022465,3]
[329649523,1718541053234,-500.0,0.00022465,3]
[329649524,1718541053260,-640.33,0.00022465,3]
[329649525,1718541053296,-500.0,0.00022465,3]
[329649526,1718541053308,-500.0,0.00022465,3]
[329649527,1718541053340,-500.0,0.00022465,3]
[329649528,1718541053376,-500.0,0.00022465,3]
[329649529,1718541053397,-500.0,0.00022465,3]
[329649530,1718541053415,-500.0,0.00022465,3]
[329649531,1718541053437,-2038.18,0.00022465,3]
[329649532,1718541053452,-500.0,0.00022465,3]
[329649533,1718541053477,-500.0,0.00022465,3]
[329649534,1718541053487,-2695.22,0.00022465,3]
[329649535,1718541053508,-500.0,0.00022465,3]
[329649536,1718541053522,-797.83,0.00022465,3]
[329649537,1718541053560,-500.0,0.00022465,3]
[329649538,1718541053576,-1432.18,0.00022465,3]
[329649539,1718541053587,-744.1,0.00022465,3]
[329649540,1718541053600,-1003.2,0.00022465,3]
[329649541,1718541053611,-500.0,0.00022465,3]
[329649542,1718541053623,-3599.24,0.00022465,3]
[329649543,1718541053637,-500.0,0.00022465,3]
[329649544,1718541053680,-500.0,0.00022465,3]
[329649545,1718541053690,-500.0,0.00022465,3]
[329649546,1718541053702,-500.0,0.00022465,3]
[329649547,1718541053713,-5052.05,0.00022465,3]
[329649548,1718541053725,-706.84,0.00022465,3]
[329649549,1718541053741,-500.0,0.00022465,3]
[329649550,1718541053754,-679.16,0.00022465,3]
[329649551,1718541053781,-500.0,0.00022465,3]
[329649552,1718541053805,-500.0,0.00022465,3]
[329649553,1718541053816,-3378.66,0.00022465,3]
[329649554,1718541053832,-500.0,0.00022465,3]
[329649555,1718541053846,-500.0,0.00022465,3]
[329649556,1718541053864,-1127.46,0.00022465,3]
[329649557,1718541053894,-500.0,0.00022465,3]
[329649558,1718541053905,-2732.04,0.00022465,3]
[329649559,1718541053916,-500.0,0.00022465,3]
[329649560,1718541053927,-3921.7,0.00022465,3]
[329649561,1718541053943,-530.12,0.00022465,3]
[329649562,1718541053964,-734.21,0.00022465,3]
[329649563,1718541053975,-1218.42,0.00022465,3]
[329649564,1718541053986,-500.0,0.00022465,3]
[329649565,1718541054002,-500.0,0.00022465,3]
[329649566,1718541054020,-517.21,0.00022465,3]
[329649567,1718541054045,-603.24,0.00022465,3]
[329649568,1718541054057,-2181.13,0.00022465,3]
[329649569,1718541054069,-674.22,0.00022465,3]
[329649570,1718541054084,-500.0,0.00022465,3]
[329649571,1718541054096,-1943.07,0.00022465,3]
[329649572,1718541054108,-712.83,0.00022465,3]
[329649573,1718541054122,-1219.05,0.00022465,3]
[329649574,1718541054152,-576.89,0.00022465,3]
[329649575,1718541054168,-1141.58,0.00022465,3]
[329649576,1718541054179,-500.0,0.00022465,3]
[329649577,1718541054191,-500.0,0.00022465,3]
[329649578,1718541054205,-2157.33,0.00022465,3]
[329649579,1718541054222,-534.98,0.00022465,3]
[329649580,1718541054262,-718.05,0.00022465,3]
[329649581,1718541054293,-1503.53,0.00022465,3]
[329649582,1718541054308,-556.93,0.00022465,3]
[329649583,1718541054325,-1865.04,0.00022465,3]
[329649584,1718541054353,-834.2,0.00022465,3]
[329649585,1718541054376,-1082.64,0.00022465,3]
[329649586,1718541054404,-500.0,0.00022465,3]
[329649587,1718541054420,-806.62,0.00022465,3]
[329649588,1718541054440,-2080.6,0.00022465,3]
[329649589,1718541054451,-500.0,0.00022465,3]
[329649590,1718541054463,-1262.11,0.00022465,3]
[329649591,1718541054476,-2011.52,0.00022465,3]
[329649592,1718541054514,-1520.87,0.00022465,3]
[329649593,1718541054536,-753.63,0.00022465,3]
[329649594,1718541054553,-1055.09,0.00022465,3]
[329649595,1718541054568,-840.68,0.00022465,3]
[329649596,1718541054589,-553.85,0.00022465,3]
[329649597,1718541054601,-522.44,0.00022465,3]
[329649598,1718541054620,-2000.1,0.00022465,3]
[329649599,1718541054652,-813.26,0.00022465,3]
[329649600,1718541054663,-500.0,0.00022465,3]
[329649601,1718541054686,-500.0,0.00022465,3]
[329649602,1718541054700,-853.1,0.00022465,3]
[329649603,1718541054721,-1275.85,0.00022465,3]
[329649604,1718541054739,-944.04,0.00022465,3]
[329649605,1718541054751,-759.95,0.00022465,3]
[329649606,1718541054763,-500.0,0.00022465,3]
[329649607,1718541054833,-1253.06,0.00022465,3]
[329649608,1718541054865,-3040.89,0.00022465,3]
[329649609,1718541054878,-500.0,0.00022465,3]
[329649610,1718541054908,-296.19326571,0.00022465,3]
[329649611,1718541054920,-534.48,0.00022465,3]
[329649612,1718541054937,-2379.38,0.00022465,3]
[329649613,1718541054961,-594.17,0.00022465,3]
[329649614,1718541054976,-2395.2,0.00022465,3]
[329649615,1718541054987,-1197.62,0.00022465,3]
[329649616,1718541054999,-500.0,0.00022465,3]
[329649617,1718541055020,-1062.1,0.00022465,3]
[329649618,1718541055032,-500.0,0.00022465,3]
[329649619,1718541055044,-500.0,0.00022465,3]
[329649620,1718541055066,-2099.55,0.00022465,3]
[329649621,1718541055078,-500.0,0.00022465,3]
[329649622,1718541055094,-620.4,0.00022465,3]
[329649623,1718541055113,-861.57,0.00022465,3]
[329649624,1718541055148,-500.0,0.00022465,3]
[329649625,1718541055162,-783.39,0.00022465,3]
[329649626,1718541055177,-1665.96,0.00022465,3]
[329649627,1718541055197,-500.0,0.00022465,3]
[329649628,1718541055211,-1511.29,0.00022465,3]
[329649629,1718541055238,-500.0,0.00022465,3]
[329649630,1718541055266,-4408.8,0.00022465,3]
[329649631,1718541055278,-549.16,0.00022465,3]
[329649632,1718541055305,-1015.52,0.00022465,3]
[329649633,1718541055318,-711.61,0.00022465,3]
[329649634,1718541055334,-500.0,0.00022465,3]
[329649635,1718541055362,-760.88,0.00022465,3]
[329649636,1718541055374,-500.0,0.00022465,3]
[329649637,1718541055401,-2985.82,0.00022465,3]
[329649638,1718541055416,-722.36,0.00022465,3]
[329649639,1718541055428,-620.66,0.00022465,3]
[329649640,1718541055469,-1310.33,0.00022465,3]
[329649641,1718541055499,-1128.27,0.00022465,3]
[329649642,1718541055510,-676.84,0.00022465,3]
[329649643,1718541055521,-1725.15,0.00022465,3]
[329649644,1718541055533,-636.9,0.00022465,3]
[329649645,1718541055545,-1331.36,0.00022465,3]
[329649646,1718541055558,-1553.5,0.00022465,3]
[329649647,1718541055572,-1295.17,0.00022465,3]
[329649648,1718541055596,-500.0,0.00022465,3]
[329649649,1718541055611,-6609.5,0.00022465,3]
[329649650,1718541055636,-992.06,0.00022465,3]
[329649651,1718541055688,-500.0,0.00022465,3]
[329649652,1718541055716,-580.06,0.00022465,3]
[329649653,1718541055730,-500.0,0.00022465,3]
[329649654,1718541055742,-4404.42,0.00022465,3]
[329649655,1718541055754,-3946.65,0.00022465,3]
[329649656,1718541055769,-500.0,0.00022465,3]
[329649657,1718541055783,-592.93,0.00022465,3]
[329649658,1718541055801,-500.0,0.00022465,3]
[329649659,1718541055813,-1125.0,0.00022465,3]
[329649660,1718541055839,-825.9,0.00022465,3]
[329649661,1718541055860,-2364.45,0.00022465,3]
[329649662,1718541055879,-500.0,0.00022465,3]
[329649663,1718541055906,-715.15608201,0.00022522,2]
[329649664,1718541055918,-177.19302389,0.00022639,2]
[329649665,1718541055929,-2265.60982102,0.00022639,2]
[329649666,1718541055942,-193.73200982,0.00022639,2]
[329649667,1718541055954,-1300.0,0.00022676,2]
[329649668,1718541055974,-464.178559,0.0002271,2]
[329649669,1718541055985,-2370.1801588,0.00022738,2]
[329649670,1718541055998,-167.89522327,0.00022739,2]
[329649671,1718541056011,-182.69938756,0.00022739,2]
[329649672,1718541056038,-10349.01445405,0.00022739,2]
[329649673,1718541056050,-440.24,0.00022739,3]
[329649674,1718541056072,-500.0,0.00022739,3]
[329649675,1718541056092,-500.0,0.00022739,3]
[329649676,1718541056104,-538.57,0.00022739,3]
[329649677,1718541056119,-500.0,0.00022739,3]
[329649678,1718541056135,-500.0,0.00022739,3]
[329649679,1718541056149,-279.86359465,0.00022739,3]
[329649680,1718541056162,-500.0,0.00022739,3]
[329649681,1718541056174,-500.0,0.00022739,3]
[329649682,1718541056187,-500.0,0.00022739,3]
[329649683,1718541056204,-500.0,0.00022739,3]
[329649684,1718541056224,-500.0,0.00022739,3]
[329649685,1718541056250,-716.15,0.00022739,3]
[329649686,1718541056302,-500.0,0.00022739,3]
[329649687,1718541056343,-500.0,0.00022739,3]
[329649688,1718541056378,-500.0,0.00022739,3]
[329649689,1718541056413,-229.85916342,0.00022739,3]
[329649690,1718541056433,-500.0,0.00022739,3]
[329649691,1718541056446,-500.0,0.00022739,3]
[329649692,1718541056457,-500.0,0.00022739,3]
[329649693,1718541056469,-500.0,0.00022739,3]
[329649694,1718541056489,-500.0,0.00022739,3]
[329649695,1718541056504,-500.0,0.00022739,3]
[329649696,1718541056536,-500.0,0.00022739,3]
[329649697,1718541056555,-500.0,0.00022739,3]
[329649698,1718541056570,-500.0,0.00022739,3]
[329649699,1718541056583,-588.14,0.00022739,3]
[329649700,1718541056595,-500.0,0.00022739,3]
[329649701,1718541056612,-500.0,0.00022739,3]
[329649702,1718541056632,-534.55,0.00022739,3]
[329649703,1718541056653,-500.0,0.00022739,3]
[329649704,1718541056668,-260.74593185,0.00022739,3]
[329649705,1718541056680,-500.0,0.00022739,3]
[329649706,1718541056701,-500.0,0.00022739,3]
[329649707,1718541056715,-500.0,0.00022739,3]
[329649708,1718541056744,-500.0,0.00022739,3]
[329649709,1718541056757,-366.77128388,0.00022739,3]
[329649710,1718541056771,-500.0,0.00022739,3]
[329649711,1718541056782,-500.0,0.00022739,3]
[329649712,1718541056794,-500.0,0.00022739,3]
[329649713,1718541056805,-500.0,0.00022739,3]
[329649714,1718541056819,-526.79,0.00022739,3]
[329649715,1718541056847,-500.0,0.00022739,3]
[329649716,1718541056863,-188.0,0.00022739,3]
[329649717,1718541056886,-500.0,0.00022739,3]
[329649718,1718541056900,-797.3,0.00022739,3]
[329649719,1718541056914,-508.22,0.00022739,3]
[329649720,1718541056928,-606.83,0.00022739,3]
[329649721,1718541056940,-500.0,0.00022739,3]
[329649722,1718541056971,-500.0,0.00022739,3]
[329649723,1718541056982,-553.46,0.00022739,3]
[329649724,1718541056993,-500.0,0.00022739,3]
[329649725,1718541057004,-500.0,0.00022739,3]
[329649726,1718541057016,-500.0,0.00022739,3]
[329649727,1718541057027,-2348.54,0.00022739,3]
[329649728,1718541057044,-500.0,0.00022739,3]
[329649729,1718541057060,-500.0,0.00022739,3]
[329649730,1718541057085,-500.0,0.00022739,3]
[329649731,1718541057097,-500.0,0.00022739,3]
[329649732,1718541057118,-500.0,0.00022739,3]
[329649733,1718541057139,-640.33,0.00022739,3]
[329649734,1718541057187,-500.0,0.00022739,3]
[329649735,1718541057220,-500.0,0.00022739,3]
[329649736,1718541057247,-500.0,0.00022739,3]
[329649737,1718541057266,-500.0,0.00022739,3]
[329649738,1718541057279,-500.0,0.00022739,3]
[329649739,1718541057291,-500.0,0.00022739,3]
[329649740,1718541057308,-2038.18,0.00022739,3]
[329649741,1718541057323,-500.0,0.00022739,3]
[329649742,1718541057339,-500.0,0.00022739,3]
[329649743,1718541057350,-500.0,0.00022739,3]
[329649744,1718541057361,-2695.22,0.00022739,3]
[329649745,1718541057375,-797.83,0.00022739,3]
[329649746,1718541057391,-500.0,0.00022739,3]
[329649747,1718541057406,-1432.18,0.00022739,3]
[329649748,1718541057433,-744.1,0.00022739,3]
[329649749,1718541057450,-1003.2,0.00022739,3]
[329649750,1718541057461,-500.0,0.00022739,3]
[329649751,1718541057483,-3599.24,0.00022739,3]
[329649752,1718541057496,-500.0,0.00022739,3]
[329649753,1718541057516,-500.0,0.00022739,3]
[329649754,1718541057540,-500.0,0.00022739,3]
[329649755,1718541057552,-500.0,0.00022739,3]
[329649756,1718541057563,-5052.05,0.00022739,3]
[329649757,1718541057578,-706.84,0.00022739,3]
[329649758,1718541057589,-500.0,0.00022739,3]
[329649759,1718541057614,-679.16,0.00022739,3]
[329649760,1718541057625,-500.0,0.00022739,3]
[329649761,1718541057637,-477.81378496,0.00022739,3]
[329649762,1718541057652,-3378.66,0.00022739,3]
[329649763,1718541057663,-500.0,0.00022739,3]
[329649764,1718541057674,-500.0,0.00022739,3]
[329649765,1718541057685,-1127.46,0.00022739,3]
[329649766,1718541057728,-500.0,0.00022739,3]
[329649767,1718541057750,-2732.04,0.00022739,3]
[329649768,1718541057761,-500.0,0.00022739,3]
[329649769,1718541057779,-3921.7,0.00022739,3]
[329649770,1718541057790,-530.12,0.00022739,3]
[329649771,1718541057813,-734.21,0.00022739,3]
[329649772,1718541057849,-1218.42,0.00022739,3]
[329649773,1718541057861,-500.0,0.00022739,3]
[329649774,1718541057874,-500.0,0.00022739,3]
[329649775,1718541057910,-517.21,0.00022739,3]
[329649776,1718541057925,-603.24,0.00022739,3]
[329649777,1718541057936,-2181.13,0.00022739,3]
[329649778,1718541057957,-674.22,0.00022739,3]
[329649779,1718541057969,-500.0,0.00022739,3]
[329649780,1718541057984,-1943.07,0.00022739,3]
[329649781,1718541058013,-712.83,0.00022739,3]
[329649782,1718541058036,-1219.05,0.00022739,3]
[329649783,1718541058066,-576.89,0.00022739,3]
[329649784,1718541058077,-1141.58,0.00022739,3]
[329649785,1718541058089,-500.0,0.00022739,3]
[329649786,1718541058108,-500.0,0.00022739,3]
[329649787,1718541058119,-2157.33,0.00022739,3]
[329649788,1718541058152,-534.98,0.00022739,3]
[329649789,1718541058165,-718.05,0.00022739,3]
[329649790,1718541058177,-1503.53,0.00022739,3]
[329649791,1718541058189,-556.93,0.00022739,3]
[329649792,1718541058205,-1865.04,0.00022739,3]
[329649793,1718541058224,-834.2,0.00022739,3]
[329649794,1718541058256,-1082.64,0.00022739,3]
[329649795,1718541058269,-500.0,0.00022739,3]
[329649796,1718541058300,-2080.6,0.00022739,3]
[329649797,1718541058311,-806.62,0.00022739,3]
[329649798,1718541058324,-500.0,0.00022739,3]
[329649799,1718541058344,-1262.11,0.00022739,3]
[329649800,1718541058358,-2011.52,0.00022739,3]
[329649801,1718541058379,-1520.87,0.00022739,3]
[329649802,1718541058390,-753.63,0.00022739,3]
[329649803,1718541058424,-1055.09,0.00022739,3]
[329649804,1718541058440,-840.68,0.00022739,3]
[329649805,1718541058464,-553.85,0.00022739,3]
[329649806,1718541058489,-522.44,0.00022739,3]
[329649807,1718541058544,-2000.1,0.00022739,3]
[329649808,1718541058556,-813.26,0.00022739,3]
[329649809,1718541058575,-500.0,0.00022739,3]
[329649810,1718541058595,-500.0,0.00022739,3]
[329649811,1718541058622,-853.1,0.00022739,3]
[329649812,1718541058634,-1275.85,0.00022739,3]
[329649813,1718541058648,-944.04,0.00022739,3]
[329649814,1718541058660,-759.95,0.00022739,3]
[329649815,1718541058671,-1253.06,0.00022739,3]
[329649816,1718541058685,-500.0,0.00022739,3]
[329649817,1718541058699,-3040.89,0.00022739,3]
[329649818,1718541058713,-500.0,0.00022739,3]
[329649819,1718541058726,-534.48,0.00022739,3]
[329649820,1718541058738,-2379.38,0.00022739,3]
[329649821,1718541058754,-594.17,0.00022739,3]
[329649822,1718541058783,-1659.1061234,0.00022739,3]
[329649823,1718541058814,-736.0938766,0.00022739,3]
[329649824,1718541058849,-1197.62,0.00022739,3]
[329649825,1718541058876,-500.0,0.00022739,3]
[329649826,1718541058901,-1062.1,0.00022739,3]
[329649827,1718541058926,-500.0,0.00022739,3]
[329649828,1718541058969,-500.0,0.00022739,3]
[329649829,1718541058992,-2099.55,0.00022739,3]
[329649830,1718541059023,-500.0,0.00022739,3]
[329649831,1718541059034,-620.4,0.00022739,3]
[329649832,1718541059047,-861.57,0.00022739,3]
[329649833,1718541059059,-500.0,0.00022739,3]
[329649834,1718541059079,-783.39,0.00022739,3]
[329649835,1718541059102,-122.5261234,0.00022739,3]
[329649836,1718541059123,-1000.0,0.00022739,3]
[329649837,1718541059598,-886.12730972,0.00021916,2]
[329649838,1718541059615,-543.4338766,0.00022739,3]
[329649839,1718541059627,-500.0,0.00022739,3]
[329649840,1718541059648,-1511.29,0.00022739,3]
[329649841,1718541059664,-500.0,0.00022739,3]
[329649842,1718541059677,-1080.16160262,0.00022739,3]
[329649843,1718541059690,-274.7021428,0.00022739,3]
[329649844,1718541059740,-3053.93625458,0.00022739,3]
[329649845,1718541059752,-549.16,0.00022739,3]
[329649846,1718541059767,-1015.52,0.00022739,3]
[329649847,1718541059779,-711.61,0.00022739,3]
[329649848,1718541059804,-500.0,0.00022739,3]
[329649849,1718541059819,-760.88,0.00022739,3]
[329649850,1718541059840,-500.0,0.00022739,3]
[329649851,1718541059851,-177.10477064,0.00022739,3]
[329649852,1718541060519,-1981.0,0.00017583,2]
[329649853,1718541060531,-2808.71522936,0.00022739,3]
[329649854,1718541060578,-722.36,0.00022739,3]
[329649855,1718541060590,-620.66,0.00022739,3]
[329649856,1718541060612,-1310.33,0.00022739,3]
[329649857,1718541060636,-1128.27,0.00022739,3]
[329649858,1718541060648,-676.84,0.00022739,3]
[329649859,1718541060684,-1725.15,0.00022739,3]
[329649860,1718541060713,-636.9,0.00022739,3]
[329649861,1718541060747,-1331.36,0.00022739,3]
[329649862,1718541060779,-1553.5,0.00022739,3]
[329649863,1718541060801,-1295.17,0.00022739,3]
[329649864,1718541060815,-500.0,0.00022739,3]
[329649865,1718541060852,-6609.5,0.00022739,3]
[329649866,1718541060872,-992.06,0.00022739,3]
[329649867,1718541060886,-500.0,0.00022739,3]
[329649868,1718541060905,-580.06,0.00022739,3]
[329649869,1718541060920,-500.0,0.00022739,3]
[329649870,1718541060931,-4404.42,0.00022739,3]
[329649871,1718541060957,-3946.65,0.00022739,3]
[329649872,1718541060968,-500.0,0.00022739,3]
[329649873,1718541060993,-592.93,0.00022739,3]